[Event "*** Titled Tuesday Blitz"]
[Site "Chess.com"]
[Date "2020.11.03"]
[Round "10"]
[White "Sacbutt"]
[Black "maicolbenavides"]
[Result "0-1"]
[WhiteElo "2282"]
[BlackElo "2214"]
[TimeControl "180+1"]
[EndTime "12:00:52 PST"]
[Termination "maicolbenavides won on time"]

1. e4 {[%clk 0:03:00.9]} 1... c5 {[%clk 0:02:46.1]} 2. Nf3 {[%clk 0:03:00.1]}
2... d6 {[%clk 0:02:43.5]} 3. c3 {[%clk 0:02:58.1]} 3... Nc6 {[%clk 0:02:41.6]}
4. d4 {[%clk 0:02:57]} 4... cxd4 {[%clk 0:02:39.5]} 5. cxd4 {[%clk 0:02:57]}
5... Nf6 {[%clk 0:02:39.4]} 6. Nc3 {[%clk 0:02:57.1]} 6... Bg4 {[%clk
0:02:38.4]} 7. Be3 {[%clk 0:02:55.6]} 7... g6 {[%clk 0:02:31.5]} 8. Be2 {[%clk
0:02:50.3]} 8... Bg7 {[%clk 0:02:31.4]} 9. O-O {[%clk 0:02:46.5]} 9... O-O
{[%clk 0:02:29.9]} 10. h3 {[%clk 0:02:46.4]} 10... Bd7 {[%clk 0:02:24.1]} 11. d5
{[%clk 0:02:43]} 11... Ne5 {[%clk 0:02:13.9]} 12. Nxe5 {[%clk 0:02:42.9]} 12...
dxe5 {[%clk 0:02:14.8]} 13. Qd2 {[%clk 0:02:43.4]} 13... Qa5 {[%clk 0:02:11.5]}
14. a3 {[%clk 0:02:41.2]} 14... Rfc8 {[%clk 0:02:02.3]} 15. b4 {[%clk
0:02:41.1]} 15... Qd8 {[%clk 0:02:00]} 16. f3 {[%clk 0:02:36.9]} 16... Nh5
{[%clk 0:01:56.4]} 17. Rac1 {[%clk 0:02:32]} 17... Nf4 {[%clk 0:01:42.5]} 18.
Bxf4 {[%clk 0:02:06.6]} 18... exf4 {[%clk 0:01:40.3]} 19. Rc2 {[%clk 0:01:54.8]}
19... Qb6+ {[%clk 0:01:38.6]} 20. Kh1 {[%clk 0:01:54.2]} 20... a5 {[%clk
0:01:34]} 21. b5 {[%clk 0:01:49.1]} 21... Be5 {[%clk 0:01:15.4]} 22. Rfc1 {[%clk
0:01:40]} 22... Rc7 {[%clk 0:01:12]} 23. Na4 {[%clk 0:01:37.8]} 23... Rxc2
{[%clk 0:01:11.3]} 24. Rxc2 {[%clk 0:01:22.6]} 24... Qd6 {[%clk 0:01:04.5]} 25.
Qc1 {[%clk 0:01:13.8]} 25... b6 {[%clk 0:00:57.9]} 26. Rc6 {[%clk 0:01:09.9]}
26... Bxc6 {[%clk 0:00:55.8]} 27. bxc6 {[%clk 0:01:09.3]} 27... Qc7 {[%clk
0:00:52.4]} 28. Qb1 {[%clk 0:01:07.3]} 28... Rb8 {[%clk 0:00:51.2]} 29. Bb5
{[%clk 0:01:01.5]} 29... Qd6 {[%clk 0:00:47.1]} 30. Qd3 {[%clk 0:01:01.2]} 30...
e6 {[%clk 0:00:44.1]} 31. dxe6 {[%clk 0:00:54.7]} 31... Qxd3 {[%clk 0:00:37.1]}
32. exf7+ {[%clk 0:00:53.1]} 32... Kxf7 {[%clk 0:00:36.2]} 33. Bxd3 {[%clk
0:00:54]} 33... Ke7 {[%clk 0:00:35.1]} 34. c7 {[%clk 0:00:37.7]} 34... Rc8
{[%clk 0:00:32.4]} 35. Nxb6 {[%clk 0:00:36.6]} 35... Rxc7 {[%clk 0:00:31.1]} 36.
Nd5+ {[%clk 0:00:35.5]} 36... Kd6 {[%clk 0:00:31.3]} 37. Nxc7 {[%clk 0:00:35.6]}
37... Kxc7 {[%clk 0:00:32.2]} 38. a4 {[%clk 0:00:35.5]} 38... Kb6 {[%clk
0:00:32.4]} 39. Kg1 {[%clk 0:00:34.6]} 39... Kc5 {[%clk 0:00:32.3]} 40. Kf1
{[%clk 0:00:34.5]} 40... Kb4 {[%clk 0:00:32]} 41. Bb5 {[%clk 0:00:34.4]} 41...
Kc3 {[%clk 0:00:29.2]} 42. Ke2 {[%clk 0:00:34.2]} 42... Kc2 {[%clk 0:00:28.5]}
43. Be8 {[%clk 0:00:32]} 43... Kc3 {[%clk 0:00:27.5]} 44. Bf7 {[%clk 0:00:31.2]}
44... Kb2 {[%clk 0:00:26.5]} 45. Bg8 {[%clk 0:00:29.3]} 45... h6 {[%clk
0:00:25.9]} 46. Kd3 {[%clk 0:00:29]} 46... g5 {[%clk 0:00:25.8]} 47. Be6 {[%clk
0:00:25.7]} 47... Ka3 {[%clk 0:00:24.5]} 48. Bd7 {[%clk 0:00:25.8]} 48... Kb4
{[%clk 0:00:24]} 49. Bc6 {[%clk 0:00:24.7]} 49... Bg7 {[%clk 0:00:23.4]} 50. e5
{[%clk 0:00:20.5]} 50... Bxe5 {[%clk 0:00:22.6]} 51. Ke4 {[%clk 0:00:21.1]}
51... Bg7 {[%clk 0:00:22.8]} 52. Kf5 {[%clk 0:00:21.3]} 52... Bf8 {[%clk
0:00:23]} 53. Kg6 {[%clk 0:00:21.6]} 53... Kc5 {[%clk 0:00:21.9]} 54. Be8 {[%clk
0:00:22.5]} 54... Kd6 {[%clk 0:00:21.8]} 55. Kf7 {[%clk 0:00:22.8]} 55... Be7
{[%clk 0:00:21.7]} 56. Bb5 {[%clk 0:00:21.6]} 56... Bd8 {[%clk 0:00:20.3]} 57.
Kg6 {[%clk 0:00:20.9]} 57... Ke5 {[%clk 0:00:20.5]} 58. Kxh6 {[%clk 0:00:21.2]}
58... Kd4 {[%clk 0:00:21]} 59. Kg6 {[%clk 0:00:20.4]} 59... Ke3 {[%clk
0:00:21.4]} 60. Kf5 {[%clk 0:00:17.8]} 60... Kf2 {[%clk 0:00:20.7]} 61. h4
{[%clk 0:00:18.3]} 61... gxh4 {[%clk 0:00:19.8]} 62. Kxf4 {[%clk 0:00:18.1]}
62... Kxg2 {[%clk 0:00:19.7]} 63. Bd7 {[%clk 0:00:18.4]} 63... h3 {[%clk
0:00:19.5]} 64. Bxh3+ {[%clk 0:00:16.7]} 64... Kxh3 {[%clk 0:00:20.4]} 65. Ke4
{[%clk 0:00:14.2]} 65... Kg3 {[%clk 0:00:20.2]} 66. f4 {[%clk 0:00:14.7]} 66...
Kg4 {[%clk 0:00:20.5]} 67. f5 {[%clk 0:00:02.4]} 67... Kg5 {[%clk 0:00:20.3]}
68. Ke5 {[%clk 0:00:02.1]} 68... Bf6+ {[%clk 0:00:20.3]} 69. Ke6 {[%clk
0:00:02.5]} 69... Bc3 {[%clk 0:00:20.6]} 0-1

[Event "*** Titled Tuesday Blitz"]
[Site "Chess.com"]
[Date "2020.11.03"]
[Round "10"]
[White "Xeniya2005"]
[Black "sopo-tereladze"]
[Result "1-0"]
[WhiteElo "2399"]
[BlackElo "2312"]
[TimeControl "180+1"]
[EndTime "12:00:58 PST"]
[Termination "Xeniya2005 won by resignation"]

1. e4 {[%clk 0:03:00.9]} 1... e5 {[%clk 0:02:45.2]} 2. Nf3 {[%clk 0:03:00]} 2...
Nc6 {[%clk 0:02:43.1]} 3. Nc3 {[%clk 0:02:59.4]} 3... Nf6 {[%clk 0:02:42]} 4.
Bb5 {[%clk 0:02:58.8]} 4... Bb4 {[%clk 0:02:40.2]} 5. d3 {[%clk 0:02:57.5]} 5...
d6 {[%clk 0:02:37.7]} 6. O-O {[%clk 0:02:56.5]} 6... a6 {[%clk 0:02:36.3]} 7.
Ba4 {[%clk 0:02:53.7]} 7... Bxc3 {[%clk 0:02:30.4]} 8. bxc3 {[%clk 0:02:52.5]}
8... O-O {[%clk 0:02:30.6]} 9. Bg5 {[%clk 0:02:51.4]} 9... b5 {[%clk 0:02:29]}
10. Bb3 {[%clk 0:02:50.7]} 10... Na5 {[%clk 0:02:29.4]} 11. Re1 {[%clk
0:02:50.3]} 11... Nxb3 {[%clk 0:02:28.6]} 12. cxb3 {[%clk 0:02:49.4]} 12... h6
{[%clk 0:02:28.2]} 13. Bh4 {[%clk 0:02:48.1]} 13... Bg4 {[%clk 0:02:23.5]} 14.
h3 {[%clk 0:02:46.4]} 14... Bh5 {[%clk 0:02:21.4]} 15. g4 {[%clk 0:02:42.2]}
15... Bg6 {[%clk 0:02:21.1]} 16. Nh2 {[%clk 0:02:41.2]} 16... Qe7 {[%clk
0:02:17.2]} 17. Qf3 {[%clk 0:02:39.8]} 17... Qe6 {[%clk 0:02:16.3]} 18. Bxf6
{[%clk 0:02:32.3]} 18... Qxf6 {[%clk 0:02:17.2]} 19. Qxf6 {[%clk 0:02:31.6]}
19... gxf6 {[%clk 0:02:18.1]} 20. Nf1 {[%clk 0:02:31.6]} 20... h5 {[%clk
0:02:17.8]} 21. Ne3 {[%clk 0:02:30.7]} 21... hxg4 {[%clk 0:02:17.7]} 22. hxg4
{[%clk 0:02:30.2]} 22... Kg7 {[%clk 0:02:18.6]} 23. Kg2 {[%clk 0:02:28.9]} 23...
c6 {[%clk 0:02:14.8]} 24. a4 {[%clk 0:02:27.3]} 24... Rfb8 {[%clk 0:02:05.1]}
25. axb5 {[%clk 0:02:17.9]} 25... axb5 {[%clk 0:02:06]} 26. b4 {[%clk
0:02:16.1]} 26... Kf8 {[%clk 0:02:04.5]} 27. f3 {[%clk 0:02:13.7]} 27... Ke7
{[%clk 0:02:03.7]} 28. Kf2 {[%clk 0:02:10.8]} 28... Kd7 {[%clk 0:01:58.3]} 29.
c4 {[%clk 0:02:06.6]} 29... Rxa1 {[%clk 0:01:53.3]} 30. Rxa1 {[%clk 0:02:04.9]}
30... bxc4 {[%clk 0:01:52.9]} 31. Nxc4 {[%clk 0:01:59.7]} 31... Rxb4 {[%clk
0:01:51.8]} 32. Ra7+ {[%clk 0:01:58.6]} 32... Ke6 {[%clk 0:01:48]} 33. Rc7
{[%clk 0:01:55.7]} 33... d5 {[%clk 0:01:19.4]} 34. Rxc6+ {[%clk 0:01:54.1]}
34... Ke7 {[%clk 0:01:20.2]} 35. exd5 {[%clk 0:01:50.8]} 35... Bxd3 {[%clk
0:01:18.8]} 36. Nb6 {[%clk 0:01:45.8]} 36... Rd4 {[%clk 0:01:07.3]} 37. d6+
{[%clk 0:01:35.4]} 37... Ke6 {[%clk 0:00:43]} 38. d7+ {[%clk 0:01:32.7]} 38...
Ke7 {[%clk 0:00:42.6]} 39. Rc8 {[%clk 0:01:31.2]} 39... Rxd7 {[%clk 0:00:40.7]}
40. Nxd7 {[%clk 0:01:30.3]} 40... Kxd7 {[%clk 0:00:41.6]} 41. Rc5 {[%clk
0:01:27]} 41... Kd6 {[%clk 0:00:39.2]} 42. Rc3 {[%clk 0:01:26.2]} 42... Bg6
{[%clk 0:00:34.2]} 43. Ke3 {[%clk 0:01:25]} 43... f5 {[%clk 0:00:31.8]} 44. gxf5
{[%clk 0:01:20.5]} 44... Bxf5 {[%clk 0:00:32.7]} 45. Ra3 {[%clk 0:01:20.2]}
45... Be6 {[%clk 0:00:26]} 46. Ra6+ {[%clk 0:01:18.4]} 46... Kd5 {[%clk
0:00:25.9]} 47. Ra5+ {[%clk 0:01:13.3]} 47... Kd6 {[%clk 0:00:25.4]} 48. Ke4
{[%clk 0:01:12.9]} 48... f5+ {[%clk 0:00:24.8]} 49. Ke3 {[%clk 0:01:12.7]} 49...
Bd5 {[%clk 0:00:23.4]} 50. Ra6+ {[%clk 0:00:48.4]} 50... Bc6 {[%clk 0:00:21.8]}
51. f4 {[%clk 0:00:44.7]} 51... exf4+ {[%clk 0:00:19.4]} 52. Kxf4 {[%clk
0:00:44.7]} 52... Kc5 {[%clk 0:00:19.3]} 53. Kxf5 {[%clk 0:00:44]} 53... Kd5
{[%clk 0:00:18.3]} 54. Ra5+ {[%clk 0:00:42.9]} 54... Kd6 {[%clk 0:00:17.9]} 55.
Re5 {[%clk 0:00:40.6]} 55... Bd7+ {[%clk 0:00:17]} 56. Kf6 {[%clk 0:00:40]}
56... Bc6 {[%clk 0:00:17.9]} 57. Re2 {[%clk 0:00:38.6]} 57... Bd5 {[%clk
0:00:16.9]} 58. Rd2 {[%clk 0:00:38.1]} 58... Kc5 {[%clk 0:00:16.2]} 59. Ke5
{[%clk 0:00:38.3]} 59... Bc4 {[%clk 0:00:17.1]} 60. Rc2 {[%clk 0:00:34.9]} 60...
Kb4 {[%clk 0:00:16.8]} 61. Kd4 {[%clk 0:00:34.9]} 61... Bb3 {[%clk 0:00:17.7]}
62. Rc8 {[%clk 0:00:31.9]} 62... Ba4 {[%clk 0:00:14]} 63. Rb8+ {[%clk
0:00:31.7]} 63... Bb5 {[%clk 0:00:12.9]} 64. Rb7 {[%clk 0:00:31.4]} 64... Ka5
{[%clk 0:00:11.7]} 65. Kc5 {[%clk 0:00:31]} 65... Bd3 {[%clk 0:00:09.7]} 66. Rb3
{[%clk 0:00:28.9]} 66... Bc2 {[%clk 0:00:06.2]} 67. Ra3+ {[%clk 0:00:28.8]}
67... Ba4 {[%clk 0:00:05.8]} 68. Ra1 {[%clk 0:00:28.7]} 1-0

[Event "*** Titled Tuesday Blitz"]
[Site "Chess.com"]
[Date "2020.11.03"]
[Round "10"]
[White "Walter_White_Poland"]
[Black "Orest_Vovk"]
[Result "0-1"]
[WhiteElo "2353"]
[BlackElo "2452"]
[TimeControl "180+1"]
[EndTime "12:00:59 PST"]
[Termination "Orest_Vovk won by resignation"]

1. e4 {[%clk 0:03:00.9]} 1... g5 {[%clk 0:02:58.4]} 2. d4 {[%clk 0:03:00.3]}
2... g4 {[%clk 0:02:51.9]} 3. Qxg4 {[%clk 0:02:57.6]} 3... d5 {[%clk 0:02:52.3]}
4. Qg3 {[%clk 0:02:17.6]} 4... dxe4 {[%clk 0:02:32.6]} 5. Nc3 {[%clk 0:02:17]}
5... Nf6 {[%clk 0:02:31.4]} 6. Bf4 {[%clk 0:01:10.6]} 6... Rg8 {[%clk
0:02:25.4]} 7. Qe3 {[%clk 0:01:07.5]} 7... Nc6 {[%clk 0:02:19.9]} 8. O-O-O
{[%clk 0:00:57.1]} 8... Nb4 {[%clk 0:02:11.2]} 9. Nxe4 {[%clk 0:00:47.1]} 9...
Nfd5 {[%clk 0:01:58.2]} 10. Qd2 {[%clk 0:00:32.1]} 10... Nxa2+ {[%clk
0:01:49.7]} 11. Kb1 {[%clk 0:00:31.8]} 11... Nxf4 {[%clk 0:01:48.5]} 12. Qxf4
{[%clk 0:00:29.2]} 12... Nb4 {[%clk 0:01:41.7]} 13. Bc4 {[%clk 0:00:27.7]} 13...
Nd5 {[%clk 0:01:39.4]} 14. Qe5 {[%clk 0:00:20.7]} 14... Be6 {[%clk 0:01:38]} 15.
Nf3 {[%clk 0:00:15.8]} 15... Bg7 {[%clk 0:01:22]} 16. Qh5 {[%clk 0:00:10.3]}
16... Nc3+ {[%clk 0:00:56.1]} 17. Nxc3 {[%clk 0:00:09.8]} 17... Bxc4 {[%clk
0:00:56.2]} 18. Qxh7 {[%clk 0:00:10]} 18... Kf8 {[%clk 0:00:56.1]} 19. Qe4
{[%clk 0:00:08.9]} 19... c6 {[%clk 0:00:51.5]} 20. Rhe1 {[%clk 0:00:07.9]} 20...
e6 {[%clk 0:00:45.7]} 21. Ne5 {[%clk 0:00:08.1]} 21... Bxe5 {[%clk 0:00:42]} 22.
dxe5 {[%clk 0:00:08]} 22... Bd5 {[%clk 0:00:41.4]} 23. Qf4 {[%clk 0:00:08.3]}
23... Qa5 {[%clk 0:00:28.1]} 24. Qh6+ {[%clk 0:00:07.1]} 24... Ke8 {[%clk
0:00:27.4]} 25. Nxd5 {[%clk 0:00:06.5]} 25... cxd5 {[%clk 0:00:27.4]} 26. Qh7
{[%clk 0:00:06.2]} 26... Rf8 {[%clk 0:00:23.2]} 27. h4 {[%clk 0:00:06.4]} 27...
Rc8 {[%clk 0:00:18.5]} 28. h5 {[%clk 0:00:05.9]} 28... Rc4 {[%clk 0:00:18.4]}
29. h6 {[%clk 0:00:05.5]} 29... Ra4 {[%clk 0:00:18.3]} 30. c3 {[%clk 0:00:05.9]}
30... Ra1+ {[%clk 0:00:17.4]} 31. Kc2 {[%clk 0:00:06.5]} 31... Qa4+ {[%clk
0:00:17.9]} 32. Kd2 {[%clk 0:00:06.9]} 32... Qf4+ {[%clk 0:00:17.6]} 33. Ke2
{[%clk 0:00:05.8]} 33... Ra4 {[%clk 0:00:17.5]} 34. Kf1 {[%clk 0:00:05.4]} 34...
Qh2 {[%clk 0:00:17]} 35. Qg7 {[%clk 0:00:04.4]} 35... Rh4 {[%clk 0:00:14]} 36.
Re3 {[%clk 0:00:02]} 36... Rxh6 {[%clk 0:00:12.4]} 37. Qg3 {[%clk 0:00:01.5]}
37... Qh1+ {[%clk 0:00:12.1]} 38. Ke2 {[%clk 0:00:01.4]} 38... Qh5+ {[%clk
0:00:13]} 39. Qf3 {[%clk 0:00:01.3]} 39... Qxf3+ {[%clk 0:00:13]} 40. Rxf3
{[%clk 0:00:02.2]} 40... Rh5 {[%clk 0:00:12.2]} 41. Re3 {[%clk 0:00:03.1]} 41...
Ke7 {[%clk 0:00:11.6]} 42. g3 {[%clk 0:00:04]} 42... Rfh8 {[%clk 0:00:11.2]} 43.
Ra1 {[%clk 0:00:04.6]} 43... a6 {[%clk 0:00:10.8]} 44. Ra3 {[%clk 0:00:05.3]}
44... Rh1 {[%clk 0:00:10.5]} 45. Rb3 {[%clk 0:00:05.7]} 45... b5 {[%clk
0:00:10.8]} 46. Ra3 {[%clk 0:00:06.2]} 46... Ra8 {[%clk 0:00:09.6]} 47. Rf3
{[%clk 0:00:06.7]} 47... Rb1 {[%clk 0:00:09.5]} 48. Rb3 {[%clk 0:00:05.5]} 48...
Rc8 {[%clk 0:00:08.4]} 49. Kd2 {[%clk 0:00:05.3]} 49... Rc4 {[%clk 0:00:07.9]}
50. Kc2 {[%clk 0:00:05.3]} 50... Ra1 {[%clk 0:00:08.5]} 51. Rf4 {[%clk
0:00:05.1]} 51... Rxf4 {[%clk 0:00:08]} 52. gxf4 {[%clk 0:00:06]} 52... f6
{[%clk 0:00:07.8]} 53. Rb4 {[%clk 0:00:06.3]} 53... f5 {[%clk 0:00:06.4]} 54.
Rd4 {[%clk 0:00:05.6]} 54... Re1 {[%clk 0:00:06.5]} 55. Kb3 {[%clk 0:00:04.8]}
55... a5 {[%clk 0:00:06.1]} 56. Kc2 {[%clk 0:00:03.7]} 56... Re4 {[%clk
0:00:05.4]} 57. Kd3 {[%clk 0:00:03.5]} 57... Kf7 {[%clk 0:00:04.8]} 58. Rxe4
{[%clk 0:00:03.6]} 58... fxe4+ {[%clk 0:00:05.4]} 59. Ke3 {[%clk 0:00:03.6]}
59... Kg6 {[%clk 0:00:06.3]} 60. f3 {[%clk 0:00:04]} 60... Kf5 {[%clk
0:00:05.4]} 61. fxe4+ {[%clk 0:00:04.4]} 61... dxe4 {[%clk 0:00:05.8]} 62. b3
{[%clk 0:00:04.5]} 62... a4 {[%clk 0:00:05.9]} 63. bxa4 {[%clk 0:00:04.7]} 63...
bxa4 {[%clk 0:00:06.8]} 64. c4 {[%clk 0:00:04.5]} 64... a3 {[%clk 0:00:07.2]}
65. c5 {[%clk 0:00:04.6]} 65... a2 {[%clk 0:00:07.3]} 66. c6 {[%clk 0:00:05.5]}
66... a1=Q {[%clk 0:00:07.6]} 67. c7 {[%clk 0:00:06.4]} 67... Qc3+ {[%clk
0:00:07.8]} 68. Ke2 {[%clk 0:00:05.6]} 68... Qxc7 {[%clk 0:00:08.7]} 0-1

[Event "*** Titled Tuesday Blitz"]
[Site "Chess.com"]
[Date "2020.11.03"]
[Round "10"]
[White "annamaja"]
[Black "anpospan"]
[Result "1-0"]
[WhiteElo "2320"]
[BlackElo "2379"]
[TimeControl "180+1"]
[EndTime "12:01:01 PST"]
[Termination "annamaja won on time"]

1. e4 {[%clk 0:03:00.9]} 1... e5 {[%clk 0:02:58.2]} 2. Nf3 {[%clk 0:03:00.5]}
2... c5 {[%clk 0:02:57.9]} 3. Bc4 {[%clk 0:02:48.3]} 3... Nc6 {[%clk 0:02:54.9]}
4. O-O {[%clk 0:02:41.6]} 4... Be7 {[%clk 0:02:50.9]} 5. Nc3 {[%clk 0:02:29.3]}
5... Nf6 {[%clk 0:02:48.3]} 6. d3 {[%clk 0:02:28.8]} 6... d6 {[%clk 0:02:43.4]}
7. Bg5 {[%clk 0:02:26.7]} 7... Be6 {[%clk 0:02:40.1]} 8. Bxf6 {[%clk 0:02:19.7]}
8... Bxf6 {[%clk 0:02:37.4]} 9. Nd5 {[%clk 0:02:20.2]} 9... O-O {[%clk
0:02:31.6]} 10. a4 {[%clk 0:02:16]} 10... Nd4 {[%clk 0:02:18]} 11. c3 {[%clk
0:02:11.7]} 11... Nxf3+ {[%clk 0:02:07.5]} 12. Qxf3 {[%clk 0:02:12.6]} 12...
Bxd5 {[%clk 0:02:07.2]} 13. Bxd5 {[%clk 0:02:11.9]} 13... Qe7 {[%clk 0:02:04.3]}
14. g3 {[%clk 0:02:00.5]} 14... g6 {[%clk 0:01:58.9]} 15. h4 {[%clk 0:01:59.8]}
15... Bg7 {[%clk 0:01:55.4]} 16. h5 {[%clk 0:01:59.8]} 16... Kh8 {[%clk
0:01:52.4]} 17. Kg2 {[%clk 0:01:48.3]} 17... g5 {[%clk 0:01:41]} 18. g4 {[%clk
0:01:15.6]} 18... Qf6 {[%clk 0:01:28.7]} 19. b4 {[%clk 0:00:56.1]} 19... Rab8
{[%clk 0:01:18.9]} 20. bxc5 {[%clk 0:00:50]} 20... Qxf3+ {[%clk 0:01:11.7]} 21.
Kxf3 {[%clk 0:00:50.1]} 21... dxc5 {[%clk 0:01:11.9]} 22. Rab1 {[%clk
0:00:48.7]} 22... b6 {[%clk 0:01:10.1]} 23. Rb3 {[%clk 0:00:43.6]} 23... Bf6
{[%clk 0:01:07.5]} 24. Rfb1 {[%clk 0:00:37.8]} 24... Bd8 {[%clk 0:01:04]} 25. a5
{[%clk 0:00:32.4]} 25... Kg7 {[%clk 0:00:52.8]} 26. Rb5 {[%clk 0:00:21.6]} 26...
Bc7 {[%clk 0:00:49.6]} 27. axb6 {[%clk 0:00:18.3]} 27... Rxb6 {[%clk 0:00:40.1]}
28. Rxb6 {[%clk 0:00:14.1]} 28... Bxb6 {[%clk 0:00:38.3]} 29. Ke2 {[%clk
0:00:10.2]} 29... h6 {[%clk 0:00:35.8]} 30. f3 {[%clk 0:00:07.3]} 30... Rd8
{[%clk 0:00:35.1]} 31. Kd2 {[%clk 0:00:07.3]} 31... Rd6 {[%clk 0:00:34.7]} 32.
Kc2 {[%clk 0:00:07.6]} 32... Rf6 {[%clk 0:00:34.5]} 33. Rf1 {[%clk 0:00:07]}
33... Kf8 {[%clk 0:00:33.2]} 34. Kb3 {[%clk 0:00:07.4]} 34... Ke7 {[%clk
0:00:33.1]} 35. Ka4 {[%clk 0:00:07.9]} 35... Kd6 {[%clk 0:00:32]} 36. Kb5 {[%clk
0:00:08.4]} 36... Kc7 {[%clk 0:00:31.5]} 37. Ka6 {[%clk 0:00:08.2]} 37... Kb8
{[%clk 0:00:29.5]} 38. Kb5 {[%clk 0:00:03.8]} 38... Kc7 {[%clk 0:00:16.4]} 39.
Kc4 {[%clk 0:00:04.5]} 39... a6 {[%clk 0:00:13.7]} 40. d4 {[%clk 0:00:04.7]}
40... exd4 {[%clk 0:00:12.9]} 41. cxd4 {[%clk 0:00:05.6]} 41... cxd4 {[%clk
0:00:12.8]} 42. e5 {[%clk 0:00:05.2]} 42... Rf4 {[%clk 0:00:12.3]} 43. Rc1
{[%clk 0:00:03.9]} 43... Kd7 {[%clk 0:00:10.4]} 44. Kd3 {[%clk 0:00:04]} 44...
Bc7 {[%clk 0:00:10.4]} 45. Re1 {[%clk 0:00:02.7]} 45... Ke7 {[%clk 0:00:09.5]}
46. e6 {[%clk 0:00:02.9]} 46... f6 {[%clk 0:00:08.9]} 47. Rc1 {[%clk 0:00:02.6]}
47... Be5 {[%clk 0:00:08.6]} 48. Be4 {[%clk 0:00:02.3]} 48... Kxe6 {[%clk
0:00:07.4]} 49. Rc6+ {[%clk 0:00:03]} 49... Kd7 {[%clk 0:00:07.2]} 50. Rxa6
{[%clk 0:00:03.8]} 50... Bd6 {[%clk 0:00:06.4]} 51. Kxd4 {[%clk 0:00:03.5]}
51... Bb4 {[%clk 0:00:05.3]} 52. Kd5 {[%clk 0:00:03.8]} 52... Be7 {[%clk
0:00:04.7]} 53. Ra7+ {[%clk 0:00:04.2]} 53... Kd8 {[%clk 0:00:04.3]} 54. Ke6
{[%clk 0:00:04.8]} 54... Bc5 {[%clk 0:00:03.6]} 55. Ra8+ {[%clk 0:00:04.7]}
55... Kc7 {[%clk 0:00:03.9]} 56. Rh8 {[%clk 0:00:05.2]} 56... Kb6 {[%clk
0:00:03.3]} 57. Rxh6 {[%clk 0:00:05.6]} 57... f5 {[%clk 0:00:03.8]} 58. gxf5
{[%clk 0:00:05.4]} 58... Rh4 {[%clk 0:00:03.1]} 59. Rg6 {[%clk 0:00:05.5]} 59...
Bd4 {[%clk 0:00:03.2]} 60. Kd5+ {[%clk 0:00:05.8]} 60... Kc7 {[%clk 0:00:02.7]}
61. Kxd4 {[%clk 0:00:06.3]} 61... Kd7 {[%clk 0:00:02.9]} 62. Rxg5 {[%clk
0:00:06.7]} 62... Ke7 {[%clk 0:00:02.9]} 63. Ke5 {[%clk 0:00:07.2]} 63... Kf7
{[%clk 0:00:03.1]} 64. f6 {[%clk 0:00:07.3]} 64... Rh1 {[%clk 0:00:03]} 65. Bd5+
{[%clk 0:00:07.6]} 65... Ke8 {[%clk 0:00:02]} 66. Rg8+ {[%clk 0:00:08.1]} 66...
Kd7 {[%clk 0:00:02.1]} 67. Be6+ {[%clk 0:00:08.5]} 67... Kc7 {[%clk 0:00:01.7]}
68. Rc8+ {[%clk 0:00:08.4]} 1-0